fUSD/lending_fUSD_20240506
["ID","MTS","AMOUNT","RATE_DAILY","PERIOD"]
[326516135,1715037047498,-2172.05067977,0.00022,2]
[326516136,1715037047513,-2172.05067977,0.00022,2]
[326516137,1715037047523,-2172.05067977,0.00022,2]
[326516138,1715037047533,-2172.05067977,0.00022,2]
[326516139,1715037047543,-152.158353,0.00022,7]
[326516140,1715037047554,-152.051798,0.00022,7]
[326516141,1715037047564,-151.0,0.00022,7]
[326516142,1715037047573,-151.0,0.00022,7]
[326516143,1715037047583,-151.0,0.00022,7]
[326516144,1715037047595,-154.045324,0.00022,7]
[326516145,1715037047606,-151.0,0.00022,7]
[326516146,1715037047616,-154.080225,0.00022,7]
[326516147,1715037047625,-151.0,0.00022,7]
[326516148,1715037047636,-151.0,0.00022,7]
[326516149,1715037047645,-152.286823,0.00022,7]
[326516150,1715037047655,-151.0,0.00022,7]
[326516151,1715037047665,-152.426598,0.00022,7]
[326516152,1715037047675,-151.0,0.00022,7]
[326516153,1715037047685,-204.081002,0.00022,7]
[326516154,1715037047695,-151.293501,0.00022,7]
[326516155,1715037047705,-804.798415,0.00022,7]
[326516156,1715037047721,-151.0,0.00022,7]
[326516157,1715037047732,-204.081002,0.00022,7]
[326516158,1715037047742,-152.73358245,0.00022174,2]
[326516159,1715037047752,-151.8721283,0.0002219,2]
[326516160,1715037047763,-150.0,0.000222,3]
[326516161,1715037047773,-160.21873538,0.00022256,2]
[326516162,1715037047783,-155.43631611,0.00022262,2]
[326516163,1715037047793,-187.0,0.0002227,12]
[326516164,1715037047803,-65819.41480881,0.00022282,2]
[326516165,1715037047819,-3487.66538238,0.00022282,2]
[326516166,1715037047830,-151.8721283,0.00022323,2]
[326516167,1715037047840,-160.21873538,0.00022352,2]
[326516168,1715037047850,-700.0,0.00022464,2]
[326516169,1715037047860,-900.0,0.00022464,2]
[326516170,1715037047871,-895.731538,0.00022466,2]
[326516171,1715037047881,-152.73358245,0.00022476,2]
[326516172,1715037047891,-152.73358245,0.00022491,2]
[326516173,1715037047901,-1000.0,0.000225,2]
[326516174,1715037047910,-152.73358245,0.00022545,2]
[326516175,1715037047920,-152.73358245,0.00022548,2]
[326516176,1715037047932,-5838.25271297,0.00022585,2]
[326516177,1715037047945,-971.0,0.00022636,2]
[326516178,1715037047955,-2301.0,0.00022636,2]
[326516179,1715037047965,-1397.0,0.00022636,2]
[326516180,1715037047974,-463.0,0.00022636,2]
[326516181,1715037047984,-543.0,0.00022636,2]
[326516182,1715037047993,-1259.0,0.00022636,2]
[326516183,1715037048003,-1227.0,0.00022636,2]
[326516184,1715037048012,-436.0,0.00022636,2]
[326516185,1715037048021,-609.0,0.00022636,2]
[326516186,1715037048031,-1787.0,0.00022636,2]
[326516187,1715037048041,-163.0,0.00022636,2]
[326516188,1715037048051,-808.0,0.00022636,2]
[326516189,1715037048061,-2451.0,0.00022636,2]
[326516190,1715037048070,-150.0,0.00022636,2]
[326516191,1715037048080,-421.0,0.00022636,2]
[326516192,1715037048089,-150.0,0.00022636,2]
[326516193,1715037048099,-1477.0,0.00022636,2]
[326516194,1715037048109,-1644.0,0.00022636,2]
[326516195,1715037048118,-1139.0,0.00022636,2]
[326516196,1715037048128,-215.0,0.00022636,2]
[326516197,1715037048138,-444.0,0.00022636,2]
[326516198,1715037048147,-3152.0,0.00022636,2]
[326516199,1715037048156,-37705.0,0.00022636,2]
[326516200,1715037048166,-5732.0,0.00022636,2]
[326516201,1715037048176,-5895.0,0.00022636,2]
[326516202,1715037048186,-828.957,0.00022636,2]
[326516203,1715037048196,-151.0,0.00022636,7]
[326516204,1715037048206,-151.0,0.00022636,7]
[326516205,1715037048215,-151.0,0.00022636,7]
[326516206,1715037048225,-151.0,0.00022636,7]
[326516207,1715037048234,-246.581097,0.00022636,7]
[326516208,1715037048244,-151.0,0.00022636,7]
[326516209,1715037048254,-151.0,0.00022636,7]
[326516210,1715037048263,-151.0,0.00022636,7]
[326516211,1715037048273,-152.579348,0.00022636,7]
[326516212,1715037048283,-151.0,0.00022636,7]
[326516213,1715037048292,-151.0,0.00022636,7]
[326516214,1715037048301,-151.0,0.00022636,7]
[326516215,1715037048311,-205.157808,0.00022636,7]
[326516216,1715037048321,-151.0,0.00022636,7]
[326516217,1715037048330,-151.0,0.00022636,7]
[326516218,1715037048340,-151.0,0.00022636,7]
[326516219,1715037048349,-151.0,0.00022636,7]
[326516220,1715037048359,-151.0,0.00022636,7]
[326516221,1715037048368,-151.0,0.00022636,7]
[326516222,1715037048377,-187.061284,0.00022636,7]
[326516223,1715037048387,-151.0,0.00022636,7]
[326516224,1715037048397,-154.846977,0.00022636,7]
[326516225,1715037048407,-150.0,0.000227,3]
[326516226,1715037048418,-159.00115838,0.00022732,2]
[326516227,1715037048428,-500.0,0.00022738,2]
[326516228,1715037048438,-500.0,0.00022738,2]
[326516229,1715037048447,-152.73358245,0.00022841,2]
[326516230,1715037048458,-414.63,0.0002288,2]
[326516231,1715037048468,-911.73,0.0002288,2]
[326516232,1715037048478,-829.39,0.0002288,2]
[326516233,1715037048488,-912.13,0.0002288,2]
[326516234,1715037048499,-912.13,0.0002288,2]
[326516235,1715037048514,-337.25,0.0002288,2]
[326516236,1715037048524,-159.55653523,0.00022902,2]
[326516237,1715037048534,-17699.97824205,0.00023,2]
[326516238,1715037048543,-320.0,0.00023,10]
[326516239,1715037048554,-552.37,0.00023,2]
[326516240,1715037048564,-3000.0,0.00023,2]
[326516241,1715037048573,-700.0,0.00023012,2]
[326516242,1715037048583,-900.0,0.00023012,2]
[326516243,1715037048593,-151.8721283,0.0002314,2]
[326516244,1715037048604,-157.050708,0.00023148,2]
[326516245,1715037048614,-155.43631611,0.00023193,2]
[326516246,1715037048624,-159.00115838,0.00023199,2]
[326516247,1715037048633,-150.0,0.000232,3]
[326516248,1715037048643,-159.00115838,0.00023233,2]
[326516249,1715037048652,-300.0,0.00023272,2]
[326516250,1715037048665,-895.731538,0.00023288,2]
[326516251,1715037048675,-151.44278705,0.00023316,2]
[326516252,1715037048685,-241.24731649,0.00023361,2]
[326516253,1715037048694,-2001.32534763,0.000234,2]
[326516254,1715037048704,-642.83,0.000234,2]
[326516255,1715037048714,-3169.52204067,0.00023422,2]
[326516256,1715037048724,-157.050708,0.00023448,2]
[326516257,1715037048734,-700.0,0.0002356,2]
[326516259,1715037048745,-900.0,0.0002356,2]
[326516260,1715037048755,-160.21873538,0.00023568,2]
[326516261,1715037048764,-163.69417389,0.00023658,2]
[326516262,1715037048775,-150.0,0.00023668,2]
[326516263,1715037048785,-150.0,0.000237,3]
[326516264,1715037048796,-151.8721283,0.00023712,2]
[326516265,1715037048806,-157.050708,0.00023748,2]
[326516266,1715037048818,-150.0,0.00023778,2]
[326516267,1715037048828,-500.0,0.00023834,2]
[326516268,1715037048839,-500.0,0.00023834,2]
[326516269,1715037048849,-69307.08019119,0.00023862,2]
[326516270,1715037048860,-159.00115838,0.0002393,2]
[326516271,1715037048871,-150.0,0.00023932,2]
[326516272,1715037048881,-354.25,0.0002394,2]
[326516273,1715037048890,-351.06,0.0002394,2]
[326516274,1715037048900,-5838.25271297,0.00023968,2]
[326516275,1715037048910,-150.0,0.00023985,2]
[326516276,1715037048920,-432.28243981,0.00024,2]
[326516277,1715037048934,-151.8721283,0.0002409,2]
[326516278,1715037048944,-457.635668,0.00024095,2]
[326516279,1715037048954,-474.706587,0.00024095,2]
[326516280,1715037048964,-159.00115838,0.00024103,2]
[326516281,1715037048974,-700.0,0.00024108,2]
[326516282,1715037048984,-900.0,0.00024108,2]
[326516283,1715037048994,-895.731538,0.0002411,2]
[326516284,1715037049004,-2100.0,0.00024111,2]
[326516285,1715037049014,-157.050708,0.00024148,4]
[326516286,1715037049024,-552.37,0.000242,2]
[326516287,1715037049034,-1000.0,0.000242,2]
[326516288,1715037049043,-150.0,0.000242,4]
[326516289,1715037049053,-180.0,0.0002423,2]
[326516290,1715037049063,-150.0,0.00024251,2]
[326516291,1715037049073,-155.5710581,0.0002428,2]
[326516292,1715037049083,-150.0,0.00024301,2]
[326516293,1715037049092,-163.18431386,0.00024343,2]
[326516294,1715037049102,-457.635668,0.00024396,2]
[326516295,1715037049112,-474.706587,0.00024396,2]
[326516296,1715037049124,-159.00115838,0.00024403,2]
[326516297,1715037049135,-150.0,0.00024424,2]
[326516298,1715037049146,-150.0,0.00024431,2]
[326516299,1715037049157,-157.050708,0.00024448,4]
[326516300,1715037049167,-1120.17792041,0.00024508,2]
[326516301,1715037049178,-1145.38288133,0.00024508,2]
[326516302,1715037049188,-2601.18658437,0.00024508,2]
[326516303,1715037049200,-150.0,0.0002452,2]
[326516304,1715037049214,-150.0,0.00024553,2]
[326516305,1715037049224,-1151.86238397,0.00024578,2]
[326516306,1715037049235,-642.83,0.000246,2]
[326516307,1715037049245,-25961.89,0.0002465,2]
[326516308,1715037049256,-30179.64,0.0002465,2]
[326516309,1715037049266,-262.42010681,0.00024655,2]
[326516310,1715037049276,-243.87495074,0.00024655,2]
[326516311,1715037049286,-3072.26157816,0.00024656,7]
[326516312,1715037049296,-150.0,0.00024656,10]
[326516313,1715037049307,-155.49931898,0.00024656,10]
[326516314,1715037049316,-700.0,0.00024656,2]
[326516315,1715037049328,-900.0,0.00024656,2]
[326516316,1715037049338,-150.0,0.00024656,10]
[326516317,1715037049348,-500.0,0.00024657,2]
[326516318,1715037049357,-500.0,0.00024657,2]
[326516319,1715037049367,-601.45,0.00024657,2]
[326516320,1715037049378,-500.0,0.00024657,2]
[326516321,1715037049387,-602.01,0.00024657,2]
[326516322,1715037049396,-500.0,0.00024657,2]
[326516323,1715037049406,-500.0,0.00024657,2]
[326516324,1715037049415,-500.0,0.00024657,2]
[326516325,1715037049428,-500.0,0.00024657,2]
[326516326,1715037049438,-1135.79,0.00024657,2]
[326516327,1715037049447,-549.20485604,0.00024657,2]
[326516328,1715037049457,-500.0,0.00024657,2]
[326516329,1715037049466,-500.0,0.00024657,2]
[326516330,1715037049475,-1341.84,0.00024657,2]
[326516331,1715037049485,-500.0,0.00024657,2]
[326516332,1715037049494,-500.0,0.00024657,2]
[326516333,1715037049505,-915.69,0.00024657,2]
[326516334,1715037049518,-500.0,0.00024657,2]
[326516335,1715037049527,-1318.18,0.00024657,2]
[326516336,1715037049537,-599.57,0.00024657,2]
[326516337,1715037049548,-469.56244502,0.00024657,2]
[326516338,1715037049558,-500.0,0.00024657,2]
[326516339,1715037049568,-500.0,0.00024657,2]
[326516340,1715037049577,-564.97,0.00024657,2]
[326516341,1715037049588,-500.0,0.00024657,2]
[326516342,1715037049599,-500.0,0.00024657,2]
[326516343,1715037049610,-500.0,0.00024657,2]
[326516344,1715037049622,-519.2,0.00024657,2]
[326516345,1715037049632,-500.0,0.00024657,2]
[326516346,1715037049641,-500.0,0.00024657,2]
[326516347,1715037049650,-500.0,0.00024657,2]
[326516348,1715037049660,-617.23,0.00024657,2]
[326516349,1715037049669,-1183.9,0.00024657,2]
[326516350,1715037049678,-500.0,0.00024657,2]
[326516351,1715037049688,-500.0,0.00024657,2]
[326516352,1715037049698,-500.0,0.00024657,2]
[326516353,1715037049708,-808.33,0.00024657,2]
[326516354,1715037049717,-500.0,0.00024657,2]
[326516355,1715037049728,-500.0,0.00024657,2]
[326516356,1715037049738,-500.0,0.00024657,2]
[326516357,1715037049748,-677.36,0.00024657,2]
[326516358,1715037049758,-500.0,0.00024657,2]
[326516360,1715037049768,-500.0,0.00024657,2]
[326516362,1715037049777,-500.0,0.00024657,2]
[326516364,1715037049787,-500.0,0.00024657,2]
[326516366,1715037049798,-619.73,0.00024657,2]
[326516368,1715037049808,-698.02,0.00024657,2]
[326516370,1715037049819,-500.0,0.00024657,2]
[326516372,1715037049829,-2013.35,0.00024657,2]
[326516374,1715037049839,-739.14,0.00024657,2]
[326516376,1715037049849,-500.0,0.00024657,2]
[326516378,1715037049859,-914.6,0.00024657,2]
[326516380,1715037049869,-500.0,0.00024657,2]
[326516382,1715037049879,-1311.67,0.00024657,2]
[326516384,1715037049888,-500.0,0.00024657,2]
[326516386,1715037049899,-552.52,0.00024657,2]
[326516388,1715037049909,-537.77,0.00024657,2]
[326516390,1715037049919,-500.0,0.00024657,2]
[326516392,1715037049929,-745.52,0.00024657,2]
[326516394,1715037049944,-500.0,0.00024657,2]
[326516396,1715037049955,-500.0,0.00024657,2]
[326516398,1715037049965,-500.0,0.00024657,2]
[326516400,1715037049974,-500.0,0.00024657,2]
[326516402,1715037049984,-500.0,0.00024657,2]
[326516404,1715037049994,-500.0,0.00024657,2]
[326516406,1715037050007,-943.86,0.00024657,2]
[326516408,1715037050021,-534.45,0.00024657,2]
[326516410,1715037050031,-500.0,0.00024657,2]
[326516412,1715037050041,-500.0,0.00024657,2]
[326516414,1715037050052,-548.65,0.00024657,2]
[326516416,1715037050062,-551.84,0.00024657,2]
[326516418,1715037050073,-500.0,0.00024657,2]
[326516420,1715037050083,-933.03,0.00024657,2]
[326516422,1715037050092,-500.0,0.00024657,2]
[326516424,1715037050102,-500.0,0.00024657,2]
[326516426,1715037050112,-500.0,0.00024657,2]
[326516428,1715037050123,-500.0,0.00024657,2]
[326516430,1715037050133,-500.0,0.00024657,2]
[326516432,1715037050142,-664.79,0.00024657,2]
[326516433,1715037050152,-500.0,0.00024657,2]
[326516435,1715037050162,-650.04,0.00024657,2]
[326516437,1715037050172,-500.0,0.00024657,2]
[326516439,1715037050181,-500.0,0.00024657,2]
[326516441,1715037050192,-1458.6,0.00024657,2]
[326516443,1715037050201,-500.0,0.00024657,2]
[326516445,1715037050214,-500.0,0.00024657,2]
[326516447,1715037050223,-922.65,0.00024657,2]
[326516449,1715037050233,-500.0,0.00024657,2]
[326516451,1715037050243,-500.0,0.00024657,2]
[326516453,1715037050254,-500.0,0.00024657,2]
[326516455,1715037050263,-500.0,0.00024657,2]
[326516458,1715037050274,-591.06,0.00024657,2]
[326516459,1715037050283,-500.0,0.00024657,2]
[326516461,1715037050293,-500.0,0.00024657,2]
[326516464,1715037050303,-518.94,0.00024657,2]
[326516466,1715037050312,-500.0,0.00024657,2]
[326516468,1715037050322,-500.0,0.00024657,2]
[326516470,1715037050333,-645.2,0.00024657,2]
[326516472,1715037050343,-500.0,0.00024657,2]
[326516473,1715037050353,-517.46,0.00024657,2]
[326516475,1715037050363,-500.0,0.00024657,2]
[326516478,1715037050373,-500.0,0.00024657,2]
[326516479,1715037050384,-500.0,0.00024657,2]
[326516482,1715037050393,-1441.03,0.00024657,2]
[326516483,1715037050402,-875.24,0.00024657,2]
[326516485,1715037050412,-500.0,0.00024657,2]
[326516487,1715037050422,-500.0,0.00024657,2]
[326516490,1715037050433,-1023.39,0.00024657,2]
[326516491,1715037050444,-500.0,0.00024657,2]
[326516493,1715037050455,-500.0,0.00024657,2]
[326516495,1715037050465,-500.0,0.00024657,2]
[326516498,1715037050476,-671.41,0.00024657,2]
[326516500,1715037050486,-500.0,0.00024657,2]
[326516501,1715037050495,-500.0,0.00024657,2]
[326516503,1715037050507,-500.0,0.00024657,2]
[326516505,1715037050520,-500.0,0.00024657,2]
[326516508,1715037050531,-500.0,0.00024657,2]
[326516510,1715037050541,-500.0,0.00024657,2]
[326516512,1715037050552,-1276.44,0.00024657,2]
[326516513,1715037050562,-287.63128877,0.00024657,2]
[326516515,1715037050571,-500.0,0.00024657,2]
[326516517,1715037050581,-500.0,0.00024657,2]
[326516519,1715037050592,-500.0,0.00024657,2]
[326516521,1715037050602,-500.0,0.00024657,2]
[326516523,1715037050612,-500.0,0.00024657,2]
[326516525,1715037050622,-1307.2,0.00024657,2]
[326516527,1715037050632,-500.0,0.00024657,2]
[326516530,1715037050641,-500.0,0.00024657,2]
[326516532,1715037050655,-500.0,0.00024657,2]
[326516534,1715037050664,-500.0,0.00024657,2]
[326516536,1715037050674,-627.11,0.00024657,2]
[326516538,1715037050684,-500.0,0.00024657,2]
[326516540,1715037050693,-662.94,0.00024657,2]
[326516542,1715037050703,-500.0,0.00024657,2]
[326516544,1715037050713,-793.28,0.00024657,2]
[326516546,1715037050723,-500.0,0.00024657,2]
[326516548,1715037050733,-732.69,0.00024657,2]
[326516550,1715037050742,-711.23,0.00024657,2]
[326516552,1715037050752,-500.0,0.00024657,2]
[326516554,1715037050767,-1074.07,0.00024657,2]
[326516556,1715037050777,-500.0,0.00024657,2]
[326516558,1715037050787,-500.0,0.00024657,2]
[326516560,1715037050796,-500.0,0.00024657,2]
[326516561,1715037050806,-500.0,0.00024657,2]
[326516562,1715037050815,-599.86,0.00024657,2]
[326516563,1715037050825,-500.0,0.00024657,2]
[326516564,1715037050835,-761.97,0.00024657,2]
[326516565,1715037050844,-500.0,0.00024657,2]
[326516566,1715037050854,-500.0,0.00024657,2]
[326516567,1715037050863,-500.0,0.00024657,2]
[326516568,1715037050873,-500.0,0.00024657,2]
[326516569,1715037050883,-707.34,0.00024657,2]
[326516570,1715037050892,-801.61,0.00024657,2]
[326516571,1715037050902,-679.74,0.00024657,2]
[326516572,1715037050911,-593.64,0.00024657,2]
[326516573,1715037050921,-1638.87,0.00024657,2]
[326516574,1715037050935,-1121.24,0.00024657,2]
[326516575,1715037050946,-1709.46,0.00024657,2]
[326516576,1715037050958,-500.0,0.00024657,2]
[326516577,1715037050968,-1014.06,0.00024657,2]
[326516578,1715037050978,-606.22,0.00024657,2]
[326516579,1715037050988,-500.0,0.00024657,2]
[326516580,1715037050998,-623.22,0.00024657,2]
[326516581,1715037051008,-529.88,0.00024657,2]
[326516582,1715037051018,-1881.63,0.00024657,2]
[326516583,1715037051029,-500.0,0.00024657,2]
[326516584,1715037051039,-1558.13,0.00024657,2]
[326516585,1715037051048,-500.0,0.00024657,2]
[326516586,1715037051059,-500.0,0.00024657,2]
[326516587,1715037051069,-500.0,0.00024657,2]
[326516588,1715037051079,-559.45,0.00024657,2]
[326516589,1715037051089,-500.0,0.00024657,2]
[326516590,1715037051099,-500.0,0.00024657,2]
[326516591,1715037051109,-500.0,0.00024657,2]
[326516592,1715037051120,-500.0,0.00024657,2]
[326516593,1715037051129,-676.15,0.00024657,2]
[326516594,1715037051140,-740.51,0.00024657,2]
[326516595,1715037051151,-594.3,0.00024657,2]
[326516596,1715037051161,-775.21,0.00024657,2]
[326516597,1715037051171,-500.0,0.00024657,2]
[326516598,1715037051181,-1051.28,0.00024657,2]
[326516599,1715037051190,-500.0,0.00024657,2]
[326516600,1715037051204,-1963.07,0.00024657,2]
[326516601,1715037051236,-799.34,0.00024657,2]
[326516602,1715037051247,-500.0,0.00024657,2]
[326516603,1715037051258,-1229.79,0.00024657,2]
[326516604,1715037051269,-500.0,0.00024657,2]
[326516605,1715037051279,-500.0,0.00024657,2]
[326516606,1715037051289,-1027.87,0.00024657,2]
[326516607,1715037051300,-1246.13,0.00024657,2]
[326516608,1715037051310,-1029.09,0.00024657,2]
[326516609,1715037051320,-500.0,0.00024657,2]
[326516610,1715037051331,-500.0,0.00024657,2]
[326516611,1715037051341,-500.0,0.00024657,2]
[326516612,1715037051351,-504.72,0.00024657,2]
[326516613,1715037051364,-500.0,0.00024657,2]
[326516614,1715037051377,-540.54,0.00024657,2]
[326516615,1715037051387,-509.38,0.00024657,2]
[326516616,1715037051397,-1017.03,0.00024657,2]
[326516617,1715037051408,-500.0,0.00024657,2]
[326516618,1715037051420,-500.0,0.00024657,2]
[326516619,1715037051430,-500.0,0.00024657,2]
[326516620,1715037051441,-626.73,0.00024657,2]
[326516621,1715037051629,-500.0,0.00024657,2]
[326516622,1715037051665,-3070.69,0.00024657,2]
[326516623,1715037051676,-562.9,0.00024657,2]
[326516624,1715037051687,-713.95,0.00024657,2]
[326516625,1715037051697,-1563.44,0.00024657,2]
[326516626,1715037051708,-865.33,0.00024657,2]
[326516627,1715037051718,-742.2,0.00024657,2]
[326516628,1715037051728,-500.0,0.00024657,2]
[326516629,1715037051739,-611.93,0.00024657,2]
[326516630,1715037051750,-675.04,0.00024657,2]
[326516631,1715037051761,-606.02,0.00024657,2]
[326516632,1715037051771,-500.0,0.00024657,2]
[326516633,1715037051781,-2324.06,0.00024657,2]
[326516634,1715037051792,-500.0,0.00024657,2]
[326516635,1715037051803,-711.1,0.00024657,2]
[326516636,1715037051813,-1148.01,0.00024657,2]
[326516637,1715037051823,-500.0,0.00024657,2]
[326516638,1715037051833,-544.69,0.00024657,2]
[326516639,1715037051843,-500.0,0.00024657,2]
[326516640,1715037051854,-688.94,0.00024657,2]
[326516641,1715037051863,-500.0,0.00024657,2]
[326516642,1715037051875,-500.0,0.00024657,2]
[326516643,1715037051886,-620.36,0.00024657,2]
[326516644,1715037051896,-920.07,0.00024657,2]
[326516645,1715037051907,-500.0,0.00024657,2]
[326516646,1715037051916,-659.11,0.00024657,2]
[326516647,1715037051928,-500.0,0.00024657,2]
[326516648,1715037051941,-500.0,0.00024657,2]
[326516649,1715037051951,-766.65,0.00024657,2]
[326516650,1715037051962,-500.0,0.00024657,2]
[326516651,1715037051973,-599.47,0.00024657,2]
[326516652,1715037051983,-542.63,0.00024657,2]
[326516653,1715037051994,-999.52,0.00024657,2]
[326516654,1715037052005,-1149.4,0.00024657,2]
[326516655,1715037052015,-500.0,0.00024657,2]
[326516656,1715037052025,-500.0,0.00024657,2]
[326516657,1715037052036,-1009.47,0.00024657,2]
[326516658,1715037052046,-500.0,0.00024657,2]
[326516659,1715037052056,-500.0,0.00024657,2]
[326516660,1715037052066,-903.77,0.00024657,2]
[326516661,1715037052077,-500.0,0.00024657,2]
[326516662,1715037052088,-722.12,0.00024657,2]
[326516663,1715037052097,-1187.56,0.00024657,2]
[326516664,1715037052107,-500.68,0.00024657,2]
[326516665,1715037052117,-909.69,0.00024657,2]
[326516666,1715037052128,-500.0,0.00024657,2]
[326516667,1715037052138,-794.57,0.00024657,2]
[326516668,1715037052148,-1536.98,0.00024657,2]
[326516669,1715037052158,-500.0,0.00024657,2]
[326516670,1715037052168,-500.0,0.00024657,2]
[326516671,1715037052177,-1203.09,0.00024657,2]
[326516672,1715037052187,-1120.45,0.00024657,2]
[326516673,1715037052197,-559.63,0.00024657,2]
[326516674,1715037052208,-1050.34,0.00024657,2]
[326516675,1715037052218,-500.0,0.00024657,2]
[326516676,1715037052227,-1538.35,0.00024657,2]
[326516677,1715037052237,-500.0,0.00024657,2]
[326516678,1715037052247,-500.0,0.00024657,2]
[326516679,1715037052256,-678.38,0.00024657,2]
[326516680,1715037052266,-500.0,0.00024657,2]
[326516681,1715037052276,-843.05,0.00024657,2]
[326516682,1715037052286,-756.41,0.00024657,2]
[326516683,1715037052296,-687.47,0.00024657,2]
[326516684,1715037052306,-687.63,0.00024657,2]
[326516685,1715037052316,-1141.27,0.00024657,2]
[326516686,1715037052326,-541.97,0.00024657,2]
[326516687,1715037052337,-500.0,0.00024657,2]
[326516688,1715037052348,-500.0,0.00024657,2]
[326516689,1715037052358,-554.58,0.00024657,2]
[326516690,1715037052368,-500.0,0.00024657,2]
[326516691,1715037052380,-868.1,0.00024657,2]
[326516692,1715037052391,-817.9,0.00024657,2]
[326516693,1715037052401,-697.29,0.00024657,2]
[326516694,1715037052411,-500.0,0.00024657,2]
[326516695,1715037052422,-1134.68,0.00024657,2]
[326516696,1715037052432,-500.0,0.00024657,2]
[326516697,1715037052443,-1336.46,0.00024657,2]
[326516698,1715037052453,-524.39,0.00024657,2]
[326516699,1715037052463,-500.0,0.00024657,2]
[326516700,1715037052473,-500.0,0.00024657,2]
[326516701,1715037052483,-500.0,0.00024657,2]
[326516702,1715037052494,-500.0,0.00024657,2]
[326516703,1715037052505,-500.0,0.00024657,2]
[326516704,1715037052519,-500.0,0.00024657,2]
[326516705,1715037052529,-983.06,0.00024657,2]
[326516706,1715037052539,-758.38,0.00024657,2]
[326516707,1715037052550,-815.67,0.00024657,2]
[326516708,1715037052561,-500.0,0.00024657,2]
[326516709,1715037052572,-500.0,0.00024657,2]
[326516710,1715037052582,-500.0,0.00024657,2]
[326516711,1715037052593,-1179.05,0.00024657,2]
[326516712,1715037052604,-500.0,0.00024657,2]
[326516713,1715037052615,-500.0,0.00024657,2]
[326516714,1715037052625,-1808.66,0.00024657,2]
[326516715,1715037052634,-733.05,0.00024657,2]
[326516716,1715037052644,-500.0,0.00024657,2]
[326516717,1715037052654,-865.37,0.00024657,2]
[326516718,1715037052664,-500.0,0.00024657,2]
[326516719,1715037052675,-515.10765503,0.00024657,2]
[326516720,1715037052686,-622.24,0.00024657,2]
[326516721,1715037052697,-500.0,0.00024657,2]
[326516722,1715037052708,-296.98207628,0.00024657,2]
[326516723,1715037053279,-1658.01792372,0.00024657,2]
[326516724,1715037053289,-915.83,0.00024657,2]
[326516725,1715037053299,-3000.0,0.00024657,3]
[326516726,1715037053309,-500.0,0.00024657,2]
[326516727,1715037053319,-500.0,0.00024657,2]
[326516728,1715037053329,-2036.7,0.00024657,2]
[326516729,1715037053339,-877.38,0.00024657,2]
[326516730,1715037053349,-500.0,0.00024657,2]
[326516731,1715037053360,-948.6,0.00024657,2]
[326516732,1715037053370,-543.28,0.00024657,2]
[326516733,1715037053379,-793.82,0.00024657,2]
[326516734,1715037053389,-500.0,0.00024657,2]
[326516735,1715037053399,-1004.14,0.00024657,2]
[326516736,1715037053410,-500.0,0.00024657,2]